[Event "*** Titled Tuesday Blitz"]
[Site "Chess.com"]
[Date "2019.12.03"]
[Round "2"]
[White "IgorBjelobrk"]
[Black "semchik73"]
[Result "0-1"]
[WhiteElo "2692"]
[BlackElo "2403"]
[TimeControl "180+2"]
[EndTime "13:22:30 PST"]
[Termination "semchik73 won by checkmate"]

1. d4 {[%clk 0:03:01.9]} 1... d5 {[%clk 0:03:00.4]} 2. c4 {[%clk 0:03:02.1]}
2... c6 {[%clk 0:03:01.5]} 3. cxd5 {[%clk 0:03:00.2]} 3... cxd5 {[%clk 0:03:02]}
4. Bf4 {[%clk 0:03:01.5]} 4... Nc6 {[%clk 0:03:02.5]} 5. e3 {[%clk 0:03:02.3]}
5... Nf6 {[%clk 0:03:03.7]} 6. Nc3 {[%clk 0:03:02.7]} 6... a6 {[%clk 0:03:03]}
7. Bd3 {[%clk 0:03:01.8]} 7... e6 {[%clk 0:03:03.8]} 8. Rc1 {[%clk 0:03:01.4]}
8... Bd6 {[%clk 0:03:04.4]} 9. Bxd6 {[%clk 0:03:01.4]} 9... Qxd6 {[%clk
0:03:05]} 10. f4 {[%clk 0:03:02.8]} 10... b5 {[%clk 0:02:57.4]} 11. Nf3 {[%clk
0:03:03]} 11... Bb7 {[%clk 0:02:57.7]} 12. O-O {[%clk 0:03:03.3]} 12... O-O
{[%clk 0:02:58.2]} 13. Ne5 {[%clk 0:03:04]} 13... Rac8 {[%clk 0:02:53.2]} 14.
Qf3 {[%clk 0:03:04.1]} 14... Ne7 {[%clk 0:02:32.8]} 15. g4 {[%clk 0:02:54.6]}
15... Qb4 {[%clk 0:02:13.3]} 16. Qg2 {[%clk 0:02:47]} 16... Ne4 {[%clk
0:02:06.6]} 17. Bxe4 {[%clk 0:02:41.2]} 17... dxe4 {[%clk 0:02:07.3]} 18. Nd7
{[%clk 0:02:37.3]} 18... Rfd8 {[%clk 0:02:06.7]} 19. Nc5 {[%clk 0:02:38]} 19...
Ba8 {[%clk 0:01:59.8]} 20. Nxa6 {[%clk 0:02:33.5]} 20... Qa5 {[%clk 0:01:58.2]}
21. Nc5 {[%clk 0:02:32.5]} 21... b4 {[%clk 0:01:55.1]} 22. N3a4 {[%clk
0:02:29.7]} 22... Nd5 {[%clk 0:01:49.9]} 23. Qd2 {[%clk 0:02:27]} 23... Bc6
{[%clk 0:01:44.2]} 24. b3 {[%clk 0:02:23]} 24... Bxa4 {[%clk 0:01:34.3]} 25.
bxa4 {[%clk 0:02:20.8]} 25... Nc3 {[%clk 0:01:31.6]} 26. Qc2 {[%clk 0:02:19.2]}
26... Qb6 {[%clk 0:01:10.6]} 27. Nxe4 {[%clk 0:02:07.7]} 27... Qa6 {[%clk
0:00:44.2]} 28. Nxc3 {[%clk 0:01:38.7]} 28... Rxc3 {[%clk 0:00:44]} 29. Qd2
{[%clk 0:01:32.2]} 29... Rdc8 {[%clk 0:00:39.6]} 30. Rxc3 {[%clk 0:01:31.7]}
30... bxc3 {[%clk 0:00:40.1]} 31. Qc2 {[%clk 0:01:32]} 31... Qc4 {[%clk
0:00:37.4]} 32. Rc1 {[%clk 0:01:29.3]} 32... Qd5 {[%clk 0:00:36.1]} 33. Kf2
{[%clk 0:01:29.3]} 33... h5 {[%clk 0:00:35]} 34. g5 {[%clk 0:01:28.7]} 34... Qa5
{[%clk 0:00:29.4]} 35. Qb3 {[%clk 0:01:28.6]} 35... Kh7 {[%clk 0:00:21.8]} 36.
a3 {[%clk 0:01:20.9]} 36... Kg8 {[%clk 0:00:21.7]} 37. Qb4 {[%clk 0:01:18.1]}
37... Qd5 {[%clk 0:00:20]} 38. Rxc3 {[%clk 0:01:07.8]} 38... Qa2+ {[%clk
0:00:20.2]} 39. Kg3 {[%clk 0:01:07.6]} 39... h4+ {[%clk 0:00:20.4]} 40. Kh3
{[%clk 0:01:07.8]} 40... Rxc3 {[%clk 0:00:17.8]} 41. Qxc3 {[%clk 0:01:06.8]}
41... Qf2 {[%clk 0:00:19.2]} 42. Qc8+ {[%clk 0:00:32.3]} 42... Kh7 {[%clk
0:00:19.6]} 43. Qc6 {[%clk 0:00:33.8]} 43... Qxe3+ {[%clk 0:00:18.7]} 44. Kg4
{[%clk 0:00:35]} 44... f5+ {[%clk 0:00:10.2]} 45. gxf6 {[%clk 0:00:34.9]} 45...
gxf6 {[%clk 0:00:09.2]} 46. Qd7+ {[%clk 0:00:29.8]} 46... Kh6 {[%clk 0:00:08.7]}
47. Qd6 {[%clk 0:00:15.1]} 47... f5+ {[%clk 0:00:09.3]} 48. Kxh4 {[%clk
0:00:16.4]} 48... Qf2+ {[%clk 0:00:10]} 49. Kh3 {[%clk 0:00:16.2]} 49... Qf3+
{[%clk 0:00:11]} 50. Kh4 {[%clk 0:00:17.9]} 50... Qg4# {[%clk 0:00:12.2]} 0-1

[Event "*** Titled Tuesday Blitz"]
[Site "Chess.com"]
[Date "2019.12.03"]
[Round "2"]
[White "nmpdk"]
[Black "DenishevM"]
[Result "1/2-1/2"]
[WhiteElo "2332"]
[BlackElo "2615"]
[TimeControl "180+2"]
[EndTime "13:22:30 PST"]
[Termination "Game drawn by repetition"]

1. d4 {[%clk 0:03:01.9]} 1... d5 {[%clk 0:03:00.3]} 2. c4 {[%clk 0:03:02.9]}
2... c6 {[%clk 0:03:01.2]} 3. Nc3 {[%clk 0:03:03.7]} 3... Nf6 {[%clk 0:03:02.3]}
4. Nf3 {[%clk 0:03:04.8]} 4... e6 {[%clk 0:03:03.3]} 5. g3 {[%clk 0:03:05.6]}
5... dxc4 {[%clk 0:03:03.6]} 6. Bg2 {[%clk 0:03:06.5]} 6... b5 {[%clk
0:03:04.2]} 7. Ne5 {[%clk 0:03:07.6]} 7... Qb6 {[%clk 0:03:04.7]} 8. a4 {[%clk
0:03:07.5]} 8... Bb7 {[%clk 0:03:02.9]} 9. O-O {[%clk 0:03:04.4]} 9... a6 {[%clk
0:03:01.3]} 10. e4 {[%clk 0:03:01.4]} 10... Nbd7 {[%clk 0:02:56.2]} 11. Be3
{[%clk 0:03:02.1]} 11... Qc7 {[%clk 0:02:53.8]} 12. Bf4 {[%clk 0:02:44.8]} 12...
Bd6 {[%clk 0:02:51.9]} 13. Nxd7 {[%clk 0:02:44.8]} 13... Nxd7 {[%clk 0:02:53.8]}
14. Bxd6 {[%clk 0:02:35.7]} 14... Qxd6 {[%clk 0:02:55.7]} 15. e5 {[%clk
0:02:37.2]} 15... Qc7 {[%clk 0:02:54.9]} 16. Ne4 {[%clk 0:02:08]} 16... O-O
{[%clk 0:02:54.7]} 17. Nd6 {[%clk 0:01:43.4]} 17... f5 {[%clk 0:02:50.7]} 18.
Qf3 {[%clk 0:01:26.5]} 18... Nb6 {[%clk 0:01:48.7]} 19. Nxb7 {[%clk 0:01:21]}
19... Qxb7 {[%clk 0:01:50.6]} 20. Qxc6 {[%clk 0:01:22.3]} 20... Qxc6 {[%clk
0:01:46.4]} 21. Bxc6 {[%clk 0:01:24.2]} 21... Nxa4 {[%clk 0:01:46.2]} 22. Bxa8
{[%clk 0:01:16.8]} 22... Rxa8 {[%clk 0:01:48.1]} 23. Rab1 {[%clk 0:00:50.1]}
23... Rd8 {[%clk 0:01:47.7]} 24. b3 {[%clk 0:00:32]} 24... Nc3 {[%clk
0:01:40.3]} 25. Rb2 {[%clk 0:00:26.1]} 25... Rxd4 {[%clk 0:01:33.7]} 26. bxc4
{[%clk 0:00:27.1]} 26... Rxc4 {[%clk 0:01:35.6]} 27. Ra1 {[%clk 0:00:24.3]}
27... Na4 {[%clk 0:01:31.5]} 28. Rd2 {[%clk 0:00:25.3]} 28... Kf7 {[%clk
0:01:20.5]} 29. Rd7+ {[%clk 0:00:24.5]} 29... Kg6 {[%clk 0:01:17.1]} 30. Rd6
{[%clk 0:00:25.3]} 30... Nc5 {[%clk 0:01:17.5]} 31. Rc6 {[%clk 0:00:21.7]} 31...
Kg5 {[%clk 0:01:06]} 32. Kg2 {[%clk 0:00:20.5]} 32... f4 {[%clk 0:01:05.7]} 33.
Rd1 {[%clk 0:00:18.1]} 33... a5 {[%clk 0:01:01.1]} 34. Rd8 {[%clk 0:00:15.4]}
34... a4 {[%clk 0:00:59.5]} 35. Rb8 {[%clk 0:00:15.4]} 35... a3 {[%clk
0:00:56.3]} 36. Rxb5 {[%clk 0:00:16.1]} 36... a2 {[%clk 0:00:57.8]} 37. Ra5
{[%clk 0:00:17]} 37... Na4 {[%clk 0:00:31]} 38. Rxc4 {[%clk 0:00:17.7]} 38...
a1=Q {[%clk 0:00:31.4]} 39. gxf4+ {[%clk 0:00:18.8]} 39... Kf5 {[%clk
0:00:28.9]} 40. Raxa4 {[%clk 0:00:20.7]} 40... Qd1 {[%clk 0:00:28.6]} 41. Rd4
{[%clk 0:00:22.1]} 41... Qg4+ {[%clk 0:00:29.5]} 42. Kf1 {[%clk 0:00:22.4]}
42... h5 {[%clk 0:00:30.7]} 43. Rd3 {[%clk 0:00:20.5]} 43... h4 {[%clk
0:00:29.7]} 44. h3 {[%clk 0:00:21.7]} 44... Qg6 {[%clk 0:00:28.2]} 45. Rad4
{[%clk 0:00:22.7]} 45... Qe8 {[%clk 0:00:28.6]} 46. Rd7 {[%clk 0:00:23.1]} 46...
Qa8 {[%clk 0:00:24.7]} 47. Rxg7 {[%clk 0:00:22.7]} 47... Qh1+ {[%clk 0:00:21.6]}
48. Rg1 {[%clk 0:00:23.4]} 48... Qc6 {[%clk 0:00:15]} 49. Rg4 {[%clk 0:00:23.4]}
49... Qh1+ {[%clk 0:00:14.7]} 50. Rg1 {[%clk 0:00:23.6]} 50... Qc6 {[%clk
0:00:15.7]} 51. Rg4 {[%clk 0:00:24.4]} 51... Qh1+ {[%clk 0:00:16.7]} 52. Rg1
{[%clk 0:00:25.3]} 1/2-1/2

[Event "*** Titled Tuesday Blitz"]
[Site "Chess.com"]
[Date "2019.12.03"]
[Round "2"]
[White "riconaipe"]
[Black "goldenspine"]
[Result "1/2-1/2"]
[WhiteElo "2597"]
[BlackElo "2331"]
[TimeControl "180+2"]
[EndTime "13:22:31 PST"]
[Termination "Game drawn by repetition"]

1. e4 {[%clk 0:03:01.9]} 1... c6 {[%clk 0:02:59.4]} 2. Nf3 {[%clk 0:02:56.7]}
2... d5 {[%clk 0:03:00.8]} 3. Nc3 {[%clk 0:02:57.6]} 3... dxe4 {[%clk
0:02:57.4]} 4. Nxe4 {[%clk 0:02:58.3]} 4... Nd7 {[%clk 0:02:55.1]} 5. Qe2 {[%clk
0:02:57.5]} 5... Qc7 {[%clk 0:02:55.4]} 6. g3 {[%clk 0:02:56.9]} 6... Ngf6
{[%clk 0:02:55.8]} 7. d3 {[%clk 0:02:56.8]} 7... e6 {[%clk 0:02:52.8]} 8. Bf4
{[%clk 0:02:55.8]} 8... Qa5+ {[%clk 0:02:49]} 9. Bd2 {[%clk 0:02:55.7]} 9... Qb6
{[%clk 0:02:45.4]} 10. O-O-O {[%clk 0:02:54.9]} 10... Nxe4 {[%clk 0:02:38.6]}
11. dxe4 {[%clk 0:02:55.6]} 11... Bc5 {[%clk 0:02:38.9]} 12. Bc3 {[%clk
0:02:49.1]} 12... O-O {[%clk 0:02:33.8]} 13. Nd4 {[%clk 0:02:44.6]} 13... Nf6
{[%clk 0:02:19.5]} 14. f3 {[%clk 0:02:39.9]} 14... Bb4 {[%clk 0:01:50.8]} 15.
Bxb4 {[%clk 0:02:14.4]} 15... Qxb4 {[%clk 0:01:51.2]} 16. a3 {[%clk 0:02:15.6]}
16... Qb6 {[%clk 0:01:50.1]} 17. Bg2 {[%clk 0:02:03.7]} 17... e5 {[%clk
0:01:47.8]} 18. Nf5 {[%clk 0:01:59.1]} 18... Bxf5 {[%clk 0:01:38]} 19. exf5
{[%clk 0:02:01]} 19... Rfe8 {[%clk 0:01:39]} 20. Rhe1 {[%clk 0:01:59.5]} 20...
Rad8 {[%clk 0:01:20.5]} 21. Rxd8 {[%clk 0:01:58.5]} 21... Qxd8 {[%clk
0:01:22.4]} 22. Qd2 {[%clk 0:01:53.8]} 22... Qxd2+ {[%clk 0:01:22.5]} 23. Kxd2
{[%clk 0:01:55.7]} 23... Kf8 {[%clk 0:01:23]} 24. c4 {[%clk 0:01:53.4]} 24...
Rd8+ {[%clk 0:01:20.7]} 25. Kc3 {[%clk 0:01:53.5]} 25... Nd7 {[%clk 0:01:20.6]}
26. b4 {[%clk 0:01:46.5]} 26... f6 {[%clk 0:01:21.7]} 27. f4 {[%clk 0:01:42.7]}
27... exf4 {[%clk 0:01:22.1]} 28. gxf4 {[%clk 0:01:44.6]} 28... Nb6 {[%clk
0:01:19.7]} 29. Be4 {[%clk 0:01:34.1]} 29... Na4+ {[%clk 0:01:20.3]} 30. Kb3
{[%clk 0:01:34.1]} 30... Nb6 {[%clk 0:01:20.8]} 31. c5 {[%clk 0:01:18.3]} 31...
Nc8 {[%clk 0:01:21.6]} 32. a4 {[%clk 0:01:12.4]} 32... Ne7 {[%clk 0:01:19.5]}
33. b5 {[%clk 0:01:08.6]} 33... Nd5 {[%clk 0:00:51.3]} 34. Rd1 {[%clk
0:01:01.7]} 34... Ke7 {[%clk 0:00:50]} 35. Bxd5 {[%clk 0:01:03]} 35... cxd5
{[%clk 0:00:51.1]} 36. Kc3 {[%clk 0:01:01.3]} 36... Rd7 {[%clk 0:00:50.6]} 37.
Kd4 {[%clk 0:01:01.9]} 37... Kd8 {[%clk 0:00:51.8]} 38. Re1 {[%clk 0:01:02.5]}
38... Kc7 {[%clk 0:00:52.3]} 39. h4 {[%clk 0:00:59.4]} 39... Kd8 {[%clk
0:00:47.6]} 40. h5 {[%clk 0:01:00.5]} 40... Kc7 {[%clk 0:00:43.4]} 41. Re8
{[%clk 0:01:00.9]} 41... h6 {[%clk 0:00:43.7]} 42. a5 {[%clk 0:01:00.9]} 42...
Rf7 {[%clk 0:00:37.5]} 43. Re6 {[%clk 0:00:53.4]} 43... Rd7 {[%clk 0:00:31.4]}
44. b6+ {[%clk 0:00:54.2]} 44... axb6 {[%clk 0:00:31.3]} 45. axb6+ {[%clk
0:00:54]} 45... Kd8 {[%clk 0:00:32.6]} 46. Rd6 {[%clk 0:00:46.1]} 46... Rxd6
{[%clk 0:00:29.4]} 47. cxd6 {[%clk 0:00:47]} 47... Ke8 {[%clk 0:00:27.5]} 48.
Kc5 {[%clk 0:00:46.1]} 48... Kd8 {[%clk 0:00:27.1]} 49. Kd4 {[%clk 0:00:34.3]}
49... Ke8 {[%clk 0:00:27.6]} 50. Kxd5 {[%clk 0:00:35.2]} 50... Kd7 {[%clk
0:00:28.8]} 51. Kc5 {[%clk 0:00:36.7]} 51... Kd8 {[%clk 0:00:27.8]} 52. Kb5
{[%clk 0:00:36.3]} 52... Kd7 {[%clk 0:00:27.7]} 53. Kc5 {[%clk 0:00:37.5]} 53...
Kd8 {[%clk 0:00:29]} 54. Kd4 {[%clk 0:00:38.9]} 54... Ke8 {[%clk 0:00:29.8]} 55.
Ke4 {[%clk 0:00:40.4]} 55... Kd8 {[%clk 0:00:30.7]} 56. Kd4 {[%clk 0:00:33.2]}
56... Ke8 {[%clk 0:00:31.2]} 57. Kc4 {[%clk 0:00:34.3]} 57... Kd8 {[%clk
0:00:32.4]} 58. Kc5 {[%clk 0:00:28.9]} 58... Ke8 {[%clk 0:00:33.4]} 59. Kd5
{[%clk 0:00:29.2]} 59... Kd7 {[%clk 0:00:34.4]} 60. Kc5 {[%clk 0:00:29.5]}
1/2-1/2

[Event "*** Titled Tuesday Blitz"]
[Site "Chess.com"]
[Date "2019.12.03"]
[Round "2"]
[White "IMRosen"]
[Black "Sanan_Sjugirov"]
[Result "0-1"]
[WhiteElo "2600"]
[BlackElo "2910"]
[TimeControl "180+2"]
[EndTime "13:22:32 PST"]
[Termination "Sanan_Sjugirov won by resignation"]

1. d4 {[%clk 0:03:01.9]} 1... Nf6 {[%clk 0:03:00.7]} 2. Bf4 {[%clk 0:03:02]}
2... d5 {[%clk 0:02:57.3]} 3. e3 {[%clk 0:03:03]} 3... c5 {[%clk 0:02:58.4]} 4.
Nf3 {[%clk 0:03:03.3]} 4... Nc6 {[%clk 0:02:58.7]} 5. Nbd2 {[%clk 0:03:04.9]}
5... cxd4 {[%clk 0:02:55.9]} 6. exd4 {[%clk 0:03:06.8]} 6... Qb6 {[%clk
0:02:57]} 7. Nb3 {[%clk 0:03:00.6]} 7... Bg4 {[%clk 0:02:57.2]} 8. Be2 {[%clk
0:02:53.2]} 8... e6 {[%clk 0:02:57.7]} 9. O-O {[%clk 0:02:53]} 9... Be7 {[%clk
0:02:51.4]} 10. c3 {[%clk 0:02:51.6]} 10... O-O {[%clk 0:02:51]} 11. Re1 {[%clk
0:02:50.5]} 11... Rac8 {[%clk 0:02:44.3]} 12. a4 {[%clk 0:02:44.8]} 12... a6
{[%clk 0:02:43.7]} 13. Ne5 {[%clk 0:01:49.1]} 13... Bxe2 {[%clk 0:02:41.3]} 14.
Rxe2 {[%clk 0:01:50.1]} 14... Nxe5 {[%clk 0:02:38.8]} 15. Bxe5 {[%clk
0:01:43.1]} 15... Ne4 {[%clk 0:02:26.8]} 16. a5 {[%clk 0:01:29.4]} 16... Qb5
{[%clk 0:02:25.5]} 17. f3 {[%clk 0:01:19.4]} 17... Nd6 {[%clk 0:02:16.5]} 18.
Nc5 {[%clk 0:01:14.6]} 18... Nc4 {[%clk 0:02:10.6]} 19. b4 {[%clk 0:01:13.7]}
19... Bxc5 {[%clk 0:01:49.9]} 20. dxc5 {[%clk 0:01:10.9]} 20... Rcd8 {[%clk
0:01:39.5]} 21. Bg3 {[%clk 0:01:08]} 21... Rfe8 {[%clk 0:01:38.5]} 22. Qe1
{[%clk 0:00:50.1]} 22... Qc6 {[%clk 0:01:19.3]} 23. Rd1 {[%clk 0:00:50.5]} 23...
f6 {[%clk 0:01:13.7]} 24. h4 {[%clk 0:00:49.3]} 24... e5 {[%clk 0:01:10.4]} 25.
h5 {[%clk 0:00:39.5]} 25... h6 {[%clk 0:01:10.9]} 26. Bh2 {[%clk 0:00:37.2]}
26... Qe6 {[%clk 0:01:01.1]} 27. Qh4 {[%clk 0:00:38.1]} 27... Na3 {[%clk
0:00:45.8]} 28. Bg3 {[%clk 0:00:27.1]} 28... Nb5 {[%clk 0:00:46.2]} 29. Rd3
{[%clk 0:00:21.7]} 29... Qf5 {[%clk 0:00:29.6]} 30. Red2 {[%clk 0:00:19.1]}
30... e4 {[%clk 0:00:30.9]} 31. Re3 {[%clk 0:00:13.6]} 31... exf3 {[%clk
0:00:16.4]} 32. Rxf3 {[%clk 0:00:15.5]} 32... Qb1+ {[%clk 0:00:16]} 33. Rf1
{[%clk 0:00:17.1]} 33... Qe4 {[%clk 0:00:16.2]} 34. Rf3 {[%clk 0:00:15.2]} 34...
Qxh4 {[%clk 0:00:11.4]} 35. Bxh4 {[%clk 0:00:17.1]} 35... Re5 {[%clk 0:00:08.4]}
36. g4 {[%clk 0:00:06.3]} 36... Re4 {[%clk 0:00:08.5]} 37. Rg2 {[%clk
0:00:07.9]} 37... Rde8 {[%clk 0:00:07.8]} 38. Rd3 {[%clk 0:00:09.1]} 38... Rc4
{[%clk 0:00:08.1]} 39. Kh2 {[%clk 0:00:05.3]} 39... Nxc3 {[%clk 0:00:08.6]} 40.
Kh3 {[%clk 0:00:04.9]} 40... Ne2 {[%clk 0:00:08]} 41. Bg3 {[%clk 0:00:04]} 41...
d4 {[%clk 0:00:07.3]} 42. Bh2 {[%clk 0:00:04.3]} 42... Rc3 {[%clk 0:00:08]} 43.
Rxc3 {[%clk 0:00:02.8]} 43... dxc3 {[%clk 0:00:09.9]} 44. Bd6 {[%clk 0:00:02.6]}
44... c2 {[%clk 0:00:10.5]} 45. Bf4 {[%clk 0:00:04.5]} 45... Nxf4+ {[%clk
0:00:11.3]} 46. Kh2 {[%clk 0:00:05.3]} 46... Nxg2 {[%clk 0:00:13.2]} 0-1

[Event "*** Titled Tuesday Blitz"]
[Site "Chess.com"]
[Date "2019.12.03"]
[Round "2"]
[White "Spring199"]
[Black "Darhild"]
[Result "0-1"]
[WhiteElo "2303"]
[BlackElo "2657"]
[TimeControl "180+2"]
[EndTime "13:22:35 PST"]
[Termination "Darhild won by resignation"]

1. d4 {[%clk 0:03:01.9]} 1... Nf6 {[%clk 0:03:00.6]} 2. c4 {[%clk 0:03:02.5]}
2... g6 {[%clk 0:03:01.7]} 3. Nc3 {[%clk 0:03:03.1]} 3... d5 {[%clk 0:03:02.7]}
4. cxd5 {[%clk 0:03:03.7]} 4... Nxd5 {[%clk 0:03:03.9]} 5. e4 {[%clk 0:03:04.8]}
5... Nxc3 {[%clk 0:03:05]} 6. bxc3 {[%clk 0:03:06.7]} 6... Bg7 {[%clk
0:03:06.1]} 7. Nf3 {[%clk 0:03:06.9]} 7... c5 {[%clk 0:03:06.5]} 8. Bb5+ {[%clk
0:03:07.1]} 8... Nc6 {[%clk 0:03:01.8]} 9. O-O {[%clk 0:03:03]} 9... cxd4 {[%clk
0:02:48.3]} 10. cxd4 {[%clk 0:03:02.4]} 10... O-O {[%clk 0:02:48.2]} 11. Bb2
{[%clk 0:02:48.4]} 11... Qb6 {[%clk 0:02:35.1]} 12. a4 {[%clk 0:02:03.1]} 12...
Rd8 {[%clk 0:02:02.5]} 13. Bxc6 {[%clk 0:01:57.2]} 13... bxc6 {[%clk 0:01:55.6]}
14. Rb1 {[%clk 0:01:57.1]} 14... Bg4 {[%clk 0:01:44.8]} 15. Bc3 {[%clk
0:01:00.4]} 15... Qc7 {[%clk 0:01:32.1]} 16. Qd2 {[%clk 0:00:58.4]} 16... Bxf3
{[%clk 0:01:22.4]} 17. gxf3 {[%clk 0:00:58.6]} 17... Qd7 {[%clk 0:01:15.6]} 18.
Rfd1 {[%clk 0:00:56.7]} 18... Rab8 {[%clk 0:01:00.6]} 19. Rxb8 {[%clk
0:00:45.9]} 19... Rxb8 {[%clk 0:01:01.4]} 20. d5 {[%clk 0:00:44]} 20... Bxc3
{[%clk 0:00:36.3]} 21. Qxc3 {[%clk 0:00:41.8]} 21... cxd5 {[%clk 0:00:36.9]} 22.
Rxd5 {[%clk 0:00:39.6]} 22... Qxa4 {[%clk 0:00:30.2]} 23. Qc7 {[%clk 0:00:39.2]}
23... Re8 {[%clk 0:00:19.5]} 24. Rd7 {[%clk 0:00:31.8]} 24... Qa3 {[%clk
0:00:11]} 25. Kg2 {[%clk 0:00:30.6]} 25... a5 {[%clk 0:00:12]} 26. Rd5 {[%clk
0:00:21.6]} 26... a4 {[%clk 0:00:11]} 27. Ra5 {[%clk 0:00:21.6]} 27... Qb4
{[%clk 0:00:07.7]} 28. Ra7 {[%clk 0:00:14.7]} 28... h5 {[%clk 0:00:05.8]} 29.
Qd7 {[%clk 0:00:14.8]} 29... Rf8 {[%clk 0:00:04.8]} 30. Rxa4 {[%clk 0:00:15.4]}
30... Qc5 {[%clk 0:00:05.5]} 31. Ra7 {[%clk 0:00:17.1]} 31... Qg5+ {[%clk
0:00:06.4]} 32. Kf1 {[%clk 0:00:17.7]} 32... Qc1+ {[%clk 0:00:07.2]} 33. Kg2
{[%clk 0:00:18.5]} 33... Qg5+ {[%clk 0:00:08.6]} 34. Kf1 {[%clk 0:00:19.4]}
34... e6 {[%clk 0:00:10.5]} 35. Qe7 {[%clk 0:00:19.2]} 35... Qf4 {[%clk
0:00:10.1]} 36. Kg2 {[%clk 0:00:18.4]} 36... h4 {[%clk 0:00:11.5]} 37. h3 {[%clk
0:00:18.8]} 37... Rc8 {[%clk 0:00:11.2]} 38. Rc7 {[%clk 0:00:19.2]} 38... Qxc7
{[%clk 0:00:10.6]} 39. Qxh4 {[%clk 0:00:18.1]} 39... Qd8 {[%clk 0:00:10.6]} 40.
Qg4 {[%clk 0:00:18.7]} 40... Rc5 {[%clk 0:00:10.9]} 41. h4 {[%clk 0:00:20.6]}
41... Qf6 {[%clk 0:00:11.5]} 42. Kg3 {[%clk 0:00:20.2]} 42... Kg7 {[%clk
0:00:10.8]} 43. Kg2 {[%clk 0:00:20.8]} 43... Qe5 {[%clk 0:00:10.4]} 44. Kh3
{[%clk 0:00:20]} 44... Rc3 {[%clk 0:00:09.7]} 45. Kg2 {[%clk 0:00:20.4]} 45...
Qf6 {[%clk 0:00:07.9]} 46. Qg3 {[%clk 0:00:20.5]} 46... e5 {[%clk 0:00:08.4]}
47. h5 {[%clk 0:00:20.3]} 47... Qf4 {[%clk 0:00:09.4]} 48. Qh3 {[%clk
0:00:20.1]} 48... Qg5+ {[%clk 0:00:10.7]} 49. Kh2 {[%clk 0:00:20.5]} 49... Qxh5
{[%clk 0:00:11.8]} 0-1

[Event "*** Titled Tuesday Blitz"]
[Site "Chess.com"]
[Date "2019.12.03"]
[Round "2"]
[White "Laico"]
[Black "Astaneh"]
[Result "0-1"]
[WhiteElo "2310"]
[BlackElo "2557"]
[TimeControl "180+2"]
[EndTime "13:22:57 PST"]
[Termination "Astaneh won by resignation"]

1. e4 {[%clk 0:02:58.8]} 1... e5 {[%clk 0:03:00.7]} 2. Nc3 {[%clk 0:02:57.4]}
2... Nf6 {[%clk 0:02:59]} 3. f4 {[%clk 0:02:56.7]} 3... d5 {[%clk 0:02:57.1]} 4.
fxe5 {[%clk 0:02:57.6]} 4... Nxe4 {[%clk 0:02:57.8]} 5. Qf3 {[%clk 0:02:58.5]}
5... Nxc3 {[%clk 0:02:52.6]} 6. dxc3 {[%clk 0:02:59.3]} 6... Be6 {[%clk
0:02:50.5]} 7. Qg3 {[%clk 0:02:56.6]} 7... Nd7 {[%clk 0:02:49.8]} 8. Nf3 {[%clk
0:02:50.9]} 8... c6 {[%clk 0:02:44.9]} 9. Be2 {[%clk 0:02:39.6]} 9... h5 {[%clk
0:02:33.3]} 10. Bg5 {[%clk 0:02:34.2]} 10... Be7 {[%clk 0:02:25.5]} 11. Bxe7
{[%clk 0:02:29.8]} 11... Qxe7 {[%clk 0:02:27.4]} 12. Qxg7 {[%clk 0:02:30.9]}
12... O-O-O {[%clk 0:02:28.7]} 13. Qg3 {[%clk 0:02:19.3]} 13... h4 {[%clk
0:01:32.8]} 14. Qf2 {[%clk 0:02:15.2]} 14... Kb8 {[%clk 0:01:33.7]} 15. O-O-O
{[%clk 0:02:13.9]} 15... Nxe5 {[%clk 0:01:34.7]} 16. Kb1 {[%clk 0:01:36.5]}
16... Ng4 {[%clk 0:01:31.6]} 17. Qd4 {[%clk 0:01:33.1]} 17... c5 {[%clk
0:01:26.4]} 18. Qf4+ {[%clk 0:01:27.2]} 18... Qc7 {[%clk 0:01:27.4]} 19. Qxc7+
{[%clk 0:01:18]} 19... Kxc7 {[%clk 0:01:29.3]} 20. Rde1 {[%clk 0:01:09.4]} 20...
Rdg8 {[%clk 0:01:19.5]} 21. Bd3 {[%clk 0:00:57]} 21... Nf2 {[%clk 0:00:54.1]}
22. Rhg1 {[%clk 0:00:53.7]} 22... Rg7 {[%clk 0:00:52.1]} 23. Bf1 {[%clk
0:00:43.4]} 23... Bg4 {[%clk 0:00:44.5]} 24. Ne5 {[%clk 0:00:34.3]} 24... Bf5
{[%clk 0:00:44.4]} 25. Bd3 {[%clk 0:00:28.5]} 25... Nxd3 {[%clk 0:00:35.1]} 26.
Nxd3 {[%clk 0:00:29.2]} 26... Rhg8 {[%clk 0:00:37]} 27. Nf4 {[%clk 0:00:28.4]}
27... Be4 {[%clk 0:00:34.9]} 28. c4 {[%clk 0:00:24.6]} 28... Bxg2 {[%clk
0:00:23.5]} 29. cxd5 {[%clk 0:00:25.2]} 29... Kd6 {[%clk 0:00:20.4]} 30. Kc1
{[%clk 0:00:21.3]} 30... Bf3 {[%clk 0:00:21.7]} 31. Rgf1 {[%clk 0:00:17.4]}
31... Bg4 {[%clk 0:00:17.7]} 32. Kd2 {[%clk 0:00:16.1]} 32... Bd7 {[%clk
0:00:16.6]} 33. c4 {[%clk 0:00:17.1]} 33... Rg4 {[%clk 0:00:17.4]} 34. Re3
{[%clk 0:00:14]} 34... b5 {[%clk 0:00:18.3]} 35. b3 {[%clk 0:00:14.6]} 35...
bxc4 {[%clk 0:00:19.1]} 36. bxc4 {[%clk 0:00:16.5]} 36... Rb8 {[%clk 0:00:20.1]}
37. Kc3 {[%clk 0:00:16.4]} 37... Rb4 {[%clk 0:00:20.7]} 38. a3 {[%clk 0:00:16]}
38... Ra4 {[%clk 0:00:21.7]} 39. Kb3 {[%clk 0:00:17.2]} 39... a6 {[%clk
0:00:22.3]} 40. Ref3 {[%clk 0:00:12.5]} 40... h3 {[%clk 0:00:20.3]} 41. Re3
{[%clk 0:00:12]} 41... Rxc4 {[%clk 0:00:20.3]} 42. Kxc4 {[%clk 0:00:11.4]} 42...
Bb5+ {[%clk 0:00:21.6]} 43. Kc3 {[%clk 0:00:11.1]} 43... Bxf1 {[%clk 0:00:23.5]}
44. Nxh3 {[%clk 0:00:11.9]} 44... Rc4+ {[%clk 0:00:22.5]} 45. Kb3 {[%clk
0:00:13.1]} 45... Rh4 {[%clk 0:00:23.4]} 46. Ng5 {[%clk 0:00:12.6]} 46... Bc4+
{[%clk 0:00:24.2]} 47. Kc3 {[%clk 0:00:12.7]} 47... Bxd5 {[%clk 0:00:26.1]} 48.
Rd3 {[%clk 0:00:13.2]} 48... Ke5 {[%clk 0:00:25.3]} 49. Nf3+ {[%clk 0:00:10.6]}
49... Bxf3 {[%clk 0:00:25.8]} 50. Rxf3 {[%clk 0:00:12.5]} 50... f5 {[%clk
0:00:25.6]} 51. h3 {[%clk 0:00:09.4]} 51... Ke4 {[%clk 0:00:25.9]} 52. Rf1
{[%clk 0:00:09.4]} 52... Rxh3+ {[%clk 0:00:26.1]} 53. Kc4 {[%clk 0:00:10.3]}
53... Rxa3 {[%clk 0:00:25.4]} 54. Kxc5 {[%clk 0:00:11.6]} 54... f4 {[%clk
0:00:26.7]} 0-1